bitfinex-derivatives/quotes_SOLF0:USTF0_20250409
["timestamp","ask_amount","ask_price","bid_price","bid_amount"]
[1744226712172,0.05606057,119.42,119.4,0.05985143]
[1744226713477,0.05606057,119.42,119.41,8.3785]
[1744226713677,0.05606057,119.42,119.4,0.05985143]
[1744226714775,8.3785,119.41,119.4,0.05985143]
[1744226715179,8.43426057,119.42,119.4,0.05985143]
[1744226715373,0.05606057,119.42,119.4,0.05985143]
[1744226715775,0.05606057,119.42,119.41,8.3785]
[1744226716479,0.05606057,119.42,119.4,8.43865143]
[1744226716881,0.05606057,119.42,119.4,26.31148609]
[1744226717079,8.3732,119.49,119.44,26.25163466]
[1744226717282,652.42,119.53,119.46,26.25163466]
[1744226717476,8.3682,119.56,119.52,8.3702]
[1744226717779,145.2452655,119.58,119.5,26.25163466]
[1744226717972,8.3688,119.55,119.52,8.3704]
[1744226718179,8.42677432,119.55,119.53,0.05315638]
[1744226718569,0.05797432,119.55,119.53,0.05315638]
[1744226719176,0.05797432,119.55,119.54,8.3694]
[1744226719585,0.05797432,119.55,119.53,8.42295638]
[1744226719787,0.05797432,119.55,119.53,0.05315638]
[1744226720678,0.05797432,119.55,119.54,8.3694]
[1744226721087,0.05797432,119.55,119.53,0.05315638]
[1744226721275,8.42717432,119.55,119.53,0.05315638]
[1744226721780,0.05797432,119.55,119.53,0.05315638]
[1744226723788,0.05797432,119.55,119.53,8.42305638]
[1744226724286,0.05797432,119.55,119.54,8.3694]
[1744226725692,0.05797432,119.55,119.53,8.42295638]
[1744226725890,0.05797432,119.55,119.53,0.05315638]
[1744226726186,0.05797432,119.55,119.53,26.30479104]
[1744226726487,8.3655,119.6,119.56,8.3676]
[1744226726883,49.44,119.61,119.54,62.0]
[1744226727492,0.05820795,119.59,119.57,8.3671]
[1744226727992,0.05820795,119.59,119.56,8.42785631]
[1744226728486,0.05820795,119.59,119.56,0.06025631]
[1744226729796,8.3672,119.58,119.56,0.06025631]
[1744226730096,0.05820795,119.59,119.56,0.06025631]
[1744226730298,8.3673,119.57,119.56,0.06025631]
[1744226731794,8.3669,119.58,119.56,0.06025631]
[1744226732399,0.05820795,119.59,119.56,0.06025631]
[1744226732801,0.05820795,119.59,119.58,8.3666]
[1744226733698,652.06,119.65,119.57,26.25163466]
[1744226734099,8.3627,119.64,119.57,26.25163466]
[1744226734292,652.06,119.65,119.59,26.25163466]
[1744226734487,8.3607,119.67,119.59,26.25163466]
[1744226734693,49.42,119.68,119.61,26.25163466]
[1744226734894,49.42,119.68,119.62,0.06320191]
[1744226735696,49.42,119.68,119.62,8.42660191]
[1744226735896,49.42,119.68,119.62,62.06320191]
[1744226736092,26.25163466,119.66,119.62,0.06320191]
[1744226736595,3.2026,119.65,119.62,0.06320191]
[1744226736794,75.67163466,119.64,119.56,2.9436]
[1744226736998,26.25163466,119.62,119.55,3.143]
[1744226737401,8.3658,119.6,119.56,8.3679]
[1744226738007,0.06197415,119.59,119.57,0.05759492]
[1744226738608,8.42827415,119.59,119.57,0.05759492]
[1744226739802,8.3666,119.58,119.57,0.05759492]
[1744226741099,49.46197415,119.59,119.51,2.9436]
[1744226741298,26.25163466,119.58,119.5,3.1029]
[1744226741705,2.9683,119.57,119.5,3.1029]
[1744226741901,8.3701,119.53,119.5,11.4747]
[1744226742311,8.42435409,119.53,119.5,11.53348568]
[1744226742909,0.05425409,119.53,119.5,73.53348568]
[1744226743109,0.05425409,119.53,119.5,62.05878568]
[1744226744016,0.05425409,119.53,119.51,8.3714]
[1744226744515,0.05425409,119.53,119.5,0.05878568]
[1744226745319,0.05425409,119.53,119.51,8.3715]
[1744226745720,0.05425409,119.53,119.52,8.3708]
[1744226745919,49.42,119.6,119.51,26.25163466]
[1744226746314,8.3662,119.59,119.55,8.3682]
[1744226746619,49.42,119.6,119.51,26.25163466]
[1744226746919,8.367,119.58,119.54,8.3691]
[1744226747112,0.05369196,119.57,119.54,0.0622144]
[1744226747510,0.05369196,119.57,119.56,62.0]
[1744226748624,8.42099196,119.57,119.56,62.0]
[1744226748819,0.05369196,119.57,119.56,62.0]
[1744226749215,0.05369196,119.57,119.56,70.368]
[1744226750325,0.05369196,119.57,119.56,62.0]
[1744226751915,0.05369196,119.57,119.56,70.368]
[1744226752120,0.05369196,119.57,119.56,62.0]
[1744226753326,0.05369196,119.57,119.56,70.368]
[1744226753728,49.18,119.68,119.55,26.25163466]
[1744226753937,9.1691,119.67,119.59,8.3655]
[1744226754228,8.3648,119.61,119.56,2.9247]
[1744226754429,8.3648,119.61,119.57,8.3668]
[1744226754819,0.02131754,119.6,119.58,0.06426124]
[1744226755017,8.38681754,119.6,119.58,0.06426124]
[1744226755231,0.02131754,119.6,119.58,0.06426124]
[1744226755634,8.38681754,119.6,119.58,0.06426124]
[1744226756136,0.02131754,119.6,119.58,8.43076124]
[1744226756931,8.38651754,119.6,119.58,0.06426124]
[1744226757531,8.38651754,119.6,119.58,8.43086124]
[1744226757737,0.02131754,119.6,119.58,0.06426124]
[1744226758034,0.02131754,119.6,119.59,8.3659]
[1744226758432,0.02131754,119.6,119.58,0.06426124]
[1744226759937,8.38691754,119.6,119.58,0.06426124]
[1744226760833,0.02131754,119.6,119.58,8.43056124]
[1744226761030,0.02131754,119.6,119.58,0.06426124]
[1744226761430,0.02131754,119.6,119.58,8.43046124]
[1744226761833,0.02131754,119.6,119.58,0.06426124]
[1744226762634,8.38681754,119.6,119.58,0.06426124]
[1744226763139,0.02131754,119.6,119.58,0.06426124]
[1744226763841,0.02131754,119.6,119.59,8.3659]
[1744226764447,55.1454,119.67,119.58,0.06426124]
[1744226764742,55.1454,119.67,119.61,26.25163466]
[1744226764931,8.3612,119.66,119.61,26.25163466]
[1744226765133,55.1454,119.67,119.62,8.3634]
[1744226765428,55.1454,119.67,119.61,26.25163466]
[1744226765633,55.1454,119.67,119.63,0.05986266]
[1744226767127,8.3614,119.66,119.63,0.05986266]
[1744226767332,55.1454,119.67,119.56,26.25163466]
[1744226767527,55.1454,119.67,119.6,8.3647]
[1744226767732,55.1454,119.67,119.56,26.25163466]
[1744226768041,26.25163466,119.66,119.59,8.3657]
[1744226768241,8.3628,119.64,119.59,8.3657]
[1744226768435,49.16,119.63,119.61,0.05656458]
[1744226768745,57.5231,119.63,119.61,0.05656458]
[1744226769443,8.3638,119.62,119.61,0.05656458]
[1744226770636,8.36,119.62,119.57,8.3668]
[1744226770841,3.1028,119.61,119.52,192.9356216]
[1744226771038,8.3655,119.6,119.52,192.9356216]
[1744226771240,8.3655,119.6,119.56,8.3676]
[1744226771456,49.16,119.59,119.52,192.9356216]
[1744226771639,49.16,119.59,119.54,8.3693]
[1744226771836,0.06042237,119.57,119.54,8.43132986]
[1744226772646,0.06042237,119.57,119.55,8.3686]
[1744226772846,0.06042237,119.57,119.54,0.06202986]
[1744226773144,0.06042237,119.57,119.55,8.3683]
[1744226773346,0.06042237,119.57,119.54,0.06202986]
[1744226775743,26.25163466,119.56,119.47,3.1159]
[1744226775942,55.5778,119.55,119.47,8.3739]
[1744226776245,8.3725,119.5,119.47,8.3739]
[1744226776556,49.16,119.51,119.46,34.73976206]
[1744226776849,0.06004356,119.5,119.47,0.05341157]
[1744226777040,3.07944356,119.5,119.47,0.05341157]
[1744226777244,8.3736,119.48,119.47,0.05341157]
[1744226777637,8.3734,119.49,119.47,0.05341157]
[1744226777839,3.07944356,119.5,119.47,0.05341157]
[1744226778036,3.07944356,119.5,119.46,34.73976206]
[1744226778239,8.3743,119.47,119.46,34.73976206]
[1744226778841,3.2014,119.49,119.43,1.78436707]
[1744226778842,8.3756,119.46,119.43,1.78436707]
[1744226779042,3.2014,119.49,119.43,1.78436707]
[1744226779251,3.2014,119.49,119.43,1.84247779]
[1744226779546,0.05796979,119.47,119.43,1.84247779]
[1744226779950,8.3757,119.45,119.43,1.84247779]
[1744226780449,48.99796979,119.47,119.43,1.84247779]
[1744226780750,8.3753,119.46,119.43,1.84247779]
[1744226781151,48.99796979,119.47,119.43,1.84247779]
[1744226781342,8.3754,119.46,119.43,1.84247779]
[1744226781851,48.99796979,119.47,119.43,1.84247779]
[1744226783053,8.3757,119.45,119.43,1.84247779]
[1744226784052,48.99796979,119.47,119.43,1.84247779]
[1744226784851,8.3761,119.45,119.43,1.84247779]
[1744226785051,48.99796979,119.47,119.43,1.84247779]
[1744226786555,8.3764,119.44,119.43,1.84247779]
[1744226786853,48.99796979,119.47,119.43,1.84247779]
[1744226787846,8.3761,119.45,119.43,1.84247779]
[1744226788862,8.3753,119.46,119.43,1.84247779]
[1744226789046,48.99796979,119.47,119.43,1.84247779]
[1744226789351,48.99796979,119.47,119.38,6.2878]
[1744226789352,8.3789,119.41,119.35,26.25163466]
[1744226789552,48.98,119.43,119.34,26.25163466]
[1744226789853,0.05796979,119.47,119.34,26.25163466]
[1744226789854,8.3814,119.37,119.34,8.383]
[1744226790052,8.3814,119.37,119.33,6.0337]
[1744226790252,48.98,119.4,119.33,6.0337]
[1744226790452,48.98,119.4,119.33,32.28533466]
[1744226790658,0.06371486,119.38,119.35,0.05803015]
[1744226790954,8.44471486,119.38,119.35,0.05803015]
[1744226791155,0.06371486,119.38,119.35,0.05803015]
[1744226792755,8.382,119.36,119.35,0.05803015]
[1744226794457,57.362,119.36,119.35,0.05803015]
[1744226794755,8.3837,119.34,119.3,8.386]
[1744226795753,0.06332644,119.33,119.31,0.05705605]
[1744226796364,8.44742644,119.33,119.31,0.05705605]
[1744226796958,0.06332644,119.33,119.31,0.05705605]
[1744226797460,8.44752644,119.33,119.31,0.05705605]
[1744226797858,0.06332644,119.33,119.31,0.05705605]
[1744226798652,0.06332644,119.33,119.26,1.71380299]
[1744226798653,49.0,119.32,119.26,1.71380299]
[1744226798851,49.0,119.32,119.26,10.10230299]
[1744226799057,8.3868,119.3,119.26,1.71380299]
[1744226799459,75.25163466,119.32,119.26,1.71380299]
[1744226799667,2.9245,119.31,119.26,1.71380299]
[1744226799959,0.05445408,119.3,119.28,0.06201256]
[1744226800154,8.3869,119.29,119.28,0.06201256]
[1744226800354,0.05445408,119.3,119.26,1.71380299]
[1744226800665,8.3881,119.28,119.26,1.71380299]
[1744226800865,3.08205408,119.3,119.26,1.71380299]
[1744226801362,8.3883,119.27,119.26,1.71380299]
[1744226801557,75.27163466,119.28,119.2,8.3927]
[1744226801756,8.3908,119.24,119.2,8.3927]
[1744226801963,75.27163466,119.28,119.17,29.17333466]
[1744226802166,26.25163466,119.26,119.15,6.1903]
[1744226802362,26.25163466,119.24,119.15,6.1903]
[1744226802555,49.02,119.23,119.15,14.5866]
[1744226802752,8.3939,119.19,119.18,0.06279208]
[1744226803358,0.05572754,119.21,119.18,0.06279208]
[1744226803761,8.44852754,119.21,119.18,0.06279208]
[1744226803964,0.05572754,119.21,119.18,0.06279208]
[1744226804367,8.44872754,119.21,119.18,0.06279208]
[1744226805363,8.3933,119.2,119.18,0.06279208]
[1744226806070,0.05572754,119.21,119.18,0.06279208]
[1744226806671,8.3936,119.2,119.18,0.06279208]
[1744226806872,0.05572754,119.21,119.18,0.06279208]
[1744226807276,8.3934,119.2,119.18,0.06279208]
[1744226807871,0.05572754,119.21,119.18,0.06279208]
[1744226809076,8.3936,119.2,119.18,0.06279208]
[1744226809272,0.05572754,119.21,119.18,0.06279208]
[1744226809675,8.3938,119.2,119.18,0.06279208]
[1744226810864,8.44852754,119.21,119.18,0.06279208]
[1744226811175,0.05572754,119.21,119.18,0.06279208]
[1744226811379,8.44872754,119.21,119.18,0.06279208]
[1744226812271,8.3933,119.2,119.18,0.06279208]
[1744226812473,0.05572754,119.21,119.18,0.06279208]
[1744226812876,8.44852754,119.21,119.18,0.06279208]
[1744226813078,0.05572754,119.21,119.18,0.06279208]
[1744226813577,0.05572754,119.21,119.19,8.3936]
[1744226814775,0.05572754,119.21,119.18,8.45709208]
[1744226814973,0.05572754,119.21,119.18,0.06279208]
[1744226818485,8.3936,119.2,119.18,0.06279208]
[1744226819683,48.89572754,119.21,119.18,0.06279208]
[1744226819684,57.28862754,119.21,119.18,0.06279208]
[1744226819874,48.89572754,119.21,119.18,0.06279208]
[1744226820074,0.05572754,119.21,119.18,0.06279208]
[1744226820976,8.3939,119.19,119.18,0.06279208]
[1744226821780,48.84,119.2,119.18,0.06279208]
[1744226822676,8.3939,119.19,119.18,0.06279208]
[1744226822883,51.9764,119.2,119.11,6.0056]
[1744226823087,51.9764,119.2,119.12,16.48127218]
[1744226823284,8.3957,119.17,119.13,8.3975]
[1744226823586,51.9764,119.2,119.12,16.48127218]
[1744226823884,51.9764,119.2,119.13,16.48127218]
[1744226824084,0.06173037,119.17,119.15,0.06408274]
[1744226824385,0.06173037,119.17,119.15,8.46078274]
[1744226824880,0.06173037,119.17,119.15,0.06408274]
[1744226825076,0.06173037,119.17,119.15,8.46088274]
[1744226825477,0.06173037,119.17,119.15,0.06408274]
[1744226827282,0.06173037,119.17,119.15,8.46068274]
[1744226827581,65.32127218,119.23,119.15,16.54535492]
[1744226827582,48.84,119.23,119.15,16.54535492]
[1744226827777,48.84,119.23,119.17,16.48127218]
[1744226828085,606.538,119.25,119.19,16.48127218]
[1744226828285,52.0667,119.26,119.21,16.48127218]
[1744226828584,52.0667,119.26,119.19,16.48127218]
[1744226828780,0.06416078,119.25,119.22,0.06437242]
[1744226829184,8.3908,119.24,119.22,0.06437242]
[1744226829387,0.06416078,119.25,119.22,0.06437242]
[1744226830285,8.3908,119.24,119.22,0.06437242]
[1744226830487,0.06416078,119.25,119.22,0.06437242]
[1744226830987,8.3908,119.24,119.22,0.06437242]
[1744226831983,8.45416078,119.25,119.22,0.06437242]
[1744226832488,0.06416078,119.25,119.24,8.3904]
[1744226834187,604.18,119.31,119.23,19.67377218]
[1744226834378,604.18,119.31,119.24,22.71077218]
[1744226834583,8.3886,119.27,119.24,22.71077218]
[1744226834885,604.18,119.31,119.24,22.71077218]
[1744226835181,8.44333118,119.29,119.26,0.05411558]
[1744226835679,0.05583118,119.29,119.26,0.05411558]
[1744226837583,65.30127218,119.28,119.26,0.05411558]
[1744226837783,65.30127218,119.28,119.19,22.44447218]
[1744226837983,8.3924,119.22,119.19,2.9939]
[1744226838186,16.48127218,119.26,119.18,34.37619922]
[1744226838487,8.3928,119.21,119.19,34.37619922]
[1744226838690,16.48127218,119.24,119.19,34.37619922]
[1744226838991,8.3932,119.2,119.19,34.4364903]
[1744226840186,0.05978411,119.21,119.19,34.4364903]
[1744226840686,2.9721,119.27,119.21,8.392]
[1744226840991,2.9721,119.27,119.19,40.63389922]
[1744226841289,2.9721,119.27,119.2,8.3926]
[1744226841481,29.3408576,119.27,119.19,34.37619922]
[1744226841681,0.05320464,119.25,119.22,0.05299106]
[1744226842087,48.6,119.24,119.22,0.05299106]
[1744226842981,51.5523,119.24,119.22,0.05299106]
[1744226843291,51.5523,119.24,119.15,9.2516]
[1744226843875,2.9728,119.23,119.15,9.2516]
[1744226844191,2.9728,119.23,119.19,8.3934]
[1744226844393,0.06014185,119.2,119.19,8.3934]
[1744226844691,0.06014185,119.2,119.18,0.05486713]
[1744226845190,51.5721,119.27,119.18,26.42362473]
[1744226845377,51.5721,119.27,119.23,8.3906]
[1744226845581,2.9721,119.27,119.23,8.3906]
[1744226845894,51.5721,119.27,119.18,26.3687576]
[1744226846088,51.5721,119.27,119.2,26.3687576]
[1744226846396,0.05946401,119.25,119.22,0.05455213]
[1744226846891,0.05946401,119.25,119.22,26.42330973]
[1744226847091,652.6,119.31,119.26,8.3887]
[1744226847292,652.6,119.31,119.24,26.3687576]
[1744226847895,652.6,119.31,119.22,26.3687576]
[1744226848397,0.06072598,119.28,119.25,0.06423682]
[1744226848993,0.06072598,119.28,119.27,8.3877]
[1744226849794,2.598e-05,119.28,119.27,8.3877]
[1744226849992,48.6,119.35,119.27,6.1389]
[1744226850193,48.6,119.35,119.28,26.3687576]
[1744226850495,48.6,119.35,119.3,26.3687576]
[1744226850690,3.0494,119.38,119.3,26.3687576]
[1744226850894,3.0494,119.38,119.34,8.3828]
[1744226851095,0.06258623,119.35,119.34,8.3828]
[1744226851602,0.06258623,119.35,119.33,0.06143597]
[1744226852999,0.06258623,119.35,119.33,8.44523597]
[1744226853299,0.06258623,119.35,119.33,0.06143597]
[1744226853593,0.06258623,119.35,119.34,8.3834]
[1744226853791,0.06258623,119.35,119.33,0.06143597]
[1744226854201,0.06258623,119.35,119.34,8.3834]
[1744226854891,0.06258623,119.35,119.33,0.06143597]
[1744226855300,0.06258623,119.35,119.33,8.44513597]
[1744226855599,0.06258623,119.35,119.33,0.06143597]
[1744226856194,0.06258623,119.35,119.34,8.3834]
[1744226857690,0.06258623,119.35,119.33,0.06143597]
[1744226859402,0.06258623,119.35,119.34,8.3834]
[1744226859804,3.0954,119.41,119.34,8.3834]
[1744226859805,3.0954,119.41,119.34,26.3687576]
[1744226859991,63.1682,119.42,119.34,35.7093576]
[1744226860195,54.7898,119.42,119.34,35.7093576]
[1744226860793,8.3786,119.41,119.34,35.7093576]
[1744226861002,0.05508442,119.39,119.37,0.05663823]
[1744226862606,8.43548442,119.39,119.37,0.05663823]
[1744226863710,0.05508442,119.39,119.37,0.05663823]
[1744226865097,0.05508442,119.39,119.38,8.3806]
[1744226865704,8.442e-05,119.39,119.38,8.3806]
[1744226866408,8.374,119.48,119.44,8.376]
[1744226866604,57.9301,119.49,119.41,26.3687576]
[1744226866804,57.9301,119.49,119.42,2.9316]
[1744226867600,0.05606639,119.47,119.45,8.3754]
[1744226867798,0.05606639,119.47,119.44,0.06435348]
[1744226868404,0.05606639,119.47,119.46,8.375]
[1744226868610,54.3556,119.53,119.45,26.3687576]
[1744226868913,8.3719,119.51,119.47,8.3739]
[1744226869215,8.3719,119.51,119.45,26.3687576]
[1744226869512,54.3556,119.53,119.45,26.3687576]
[1744226869702,54.3556,119.53,119.47,26.42941654]
[1744226869703,0.05456422,119.49,119.47,26.42941654]
[1744226870106,0.05456422,119.49,119.48,8.3736]
[1744226870315,48.32,119.53,119.47,26.42941654]
[1744226870717,56.6901,119.53,119.49,8.3725]
[1744226871108,8.3701,119.53,119.47,26.3687576]
[1744226871313,8.3697,119.54,119.47,26.3687576]
[1744226871505,0.05387598,119.51,119.49,0.05524715]
[1744226871815,0.05387598,119.51,119.5,8.3722]
[1744226872715,0.05387598,119.51,119.49,0.05524715]
[1744226873316,651.66,119.56,119.49,26.42400475]
[1744226873903,651.66,119.56,119.49,29.61460475]
[1744226874217,651.66,119.56,119.5,2.9482]
[1744226874414,651.66,119.56,119.5,8.3718]
[1744226874614,0.04824754,119.54,119.46,365.0]
[1744226874818,3.0383,119.55,119.52,0.06341442]
[1744226875020,0.04824754,119.51,119.44,35.6397576]
[1744226875219,48.28,119.52,119.44,35.6397576]
[1744226875420,8.3722,119.5,119.46,8.3746]
[1744226875717,48.28,119.52,119.46,8.3746]
[1744226876013,8.3718,119.51,119.47,8.3742]
[1744226876212,0.05578817,119.5,119.48,0.05364932]
[1744226879517,8.3729,119.49,119.48,0.05364932]
[1744226880119,0.05578817,119.5,119.42,26.3687576]
[1744226880317,6.1775,119.51,119.42,2.9581]
[1744226880723,8.374,119.48,119.44,8.3759]
[1744226880925,56.634,119.48,119.44,8.3759]
[1744226881129,8.3753,119.46,119.43,8.3767]
[1744226881330,8.3753,119.46,119.45,0.05636352]
[1744226881825,8.3757,119.45,119.38,26.3687576]
[1744226882015,8.3757,119.45,119.38,35.7214576]
[1744226882216,74.6287576,119.48,119.4,8.3788]
[1744226882414,74.6287576,119.48,119.38,35.7214576]
[1744226883128,0.0571016,119.44,119.42,0.05898368]
[1744226883523,56.7140016,119.44,119.42,0.05898368]
[1744226883724,48.3371016,119.44,119.42,0.05898368]
[1744226884134,0.0571016,119.44,119.42,0.05898368]
[1744226884530,0.0571016,119.44,119.42,26.42774128]
[1744226885132,0.0571016,119.44,119.43,8.3771]
[1744226887833,1.6e-06,119.44,119.43,8.3771]
[1744226888030,1.6e-06,119.44,119.43,11.4428]
[1744226889632,1.6e-06,119.44,119.43,3.0657]
[1744226889828,1.6e-06,119.44,119.42,8.43648368]
[1744226890028,1.6e-06,119.44,119.42,0.05898368]
[1744226890338,1.6e-06,119.44,119.43,8.3771]
[1744226890637,1.6e-06,119.44,119.42,0.05898368]
[1744226890834,1.6e-06,119.44,119.43,8.3771]
[1744226891323,1.6e-06,119.44,119.42,0.05898368]
[1744226891530,1.6e-06,119.44,119.42,8.43638368]
[1744226892038,1.6e-06,119.44,119.42,0.05898368]
[1744226892530,1.6e-06,119.44,119.42,8.43648368]
[1744226892836,1.6e-06,119.44,119.42,0.05898368]
[1744226893226,8.3767016,119.44,119.42,0.05898368]
[1744226893426,1.6e-06,119.44,119.42,0.05898368]
[1744226893829,8.3769016,119.44,119.42,0.05898368]
[1744226894335,1.6e-06,119.44,119.42,0.05898368]
[1744226894940,1.6e-06,119.44,119.43,8.3771]
[1744226896643,1.6e-06,119.44,119.42,0.05898368]
[1744226897147,1.6e-06,119.44,119.42,8.43628368]
[1744226897336,8.3767016,119.44,119.42,0.05898368]
[1744226897840,8.3771,119.43,119.42,0.05898368]
[1744226898646,17.6204016,119.44,119.42,0.05898368]
[1744226898949,9.2438016,119.44,119.42,0.05898368]
[1744226899338,9.2438016,119.44,119.36,37.46499922]
[1744226899537,9.2438,119.44,119.36,37.46499922]
[1744226899943,9.2438,119.44,119.39,8.3799]
[1744226900247,8.3782,119.42,119.36,37.46499922]
[1744226900447,8.3782,119.42,119.36,34.37619922]
[1744226900645,8.3782,119.42,119.4,0.05937489]
[1744226900848,9.2438,119.44,119.4,0.05937489]
[1744226901046,0.06338104,119.42,119.4,0.05937489]
[1744226901346,8.44148104,119.42,119.4,0.05937489]
[1744226901546,0.06338104,119.42,119.4,0.05937489]
[1744226902140,0.06338104,119.42,119.41,8.3785]
[1744226904851,0.06338104,119.42,119.4,0.05937489]
[1744226905347,8.3785,119.41,119.4,0.05937489]
[1744226905936,48.06,119.41,119.33,126.04606382]
[1744226906150,51.1927,119.41,119.33,126.04606382]
[1744226906541,51.1927,119.41,119.34,58.44349431]
[1744226906743,51.1927,119.41,119.35,8.3823]
[1744226906936,54.4222,119.41,119.34,58.44349431]
[1744226907142,0.0618653,119.39,119.37,0.06387094]
[1744226907452,8.4420653,119.39,119.37,0.06387094]
[1744226908649,0.0618653,119.39,119.37,0.06387094]
[1744226909042,8.4423653,119.39,119.37,0.06387094]
[1744226909353,0.0618653,119.39,119.37,0.06387094]
[1744226909549,8.3806,119.38,119.37,0.06387094]
[1744226909846,0.0618653,119.39,119.37,0.06387094]
[1744226910245,8.3806,119.38,119.37,0.06387094]
[1744226910445,26.3687576,119.38,119.3,3.1843]
[1744226910637,48.06,119.37,119.3,3.1843]
[1744226911041,51.2373,119.37,119.3,11.5704]
[1744226911244,8.3841,119.33,119.3,11.5704]
[1744226911447,51.2373,119.37,119.27,48.06]
[1744226911653,0.06367892,119.33,119.3,0.06323165]
[1744226911853,8.44807892,119.33,119.3,0.06323165]
[1744226913052,8.3851,119.32,119.3,0.06323165]
[1744226913360,0.06367892,119.33,119.3,0.06323165]
[1744226914862,651.08,119.4,119.31,74.4487576]
[1744226915055,48.08,119.4,119.33,26.3687576]
[1744226915254,48.08,119.4,119.32,9.319]
[1744226915454,48.08,119.4,119.29,26.3687576]
[1744226915455,74.4487576,119.4,119.29,26.3687576]
[1744226915755,74.4487576,119.4,119.26,3.2055]
[1744226915756,26.3687576,119.34,119.26,3.2055]
[1744226915957,8.3865,119.3,119.26,11.5945]
[1744226916253,8.3865,119.3,119.29,0.05390066]
[1744226916467,8.3858,119.31,119.29,0.05390066]
[1744226916657,0.05906343,119.31,119.29,0.05390066]
[1744226916960,8.44506343,119.31,119.29,0.05390066]
[1744226917354,0.05906343,119.31,119.29,0.05390066]
[1744226917857,48.08,119.39,119.29,34.80265826]
[1744226918057,56.4604,119.39,119.32,26.3687576]
[1744226918253,56.4604,119.39,119.35,8.3826]
[1744226918455,48.08,119.39,119.32,74.4487576]
[1744226918659,48.08,119.39,119.33,3.2259]
[1744226918850,0.05573394,119.37,119.34,0.06288593]
[1744226921062,0.05573394,119.37,119.34,8.44588593]
[1744226921465,0.05573394,119.37,119.34,0.06288593]
[1744226921654,8.43703394,119.37,119.34,0.06288593]
[1744226921961,0.05573394,119.37,119.34,0.06288593]
[1744226922159,8.382,119.36,119.34,0.06288593]
[1744226922465,0.05573394,119.37,119.34,0.06288593]
[1744226922658,8.43763394,119.37,119.34,0.06288593]
[1744226923463,8.3821,119.36,119.34,0.06288593]
[1744226924065,0.05573394,119.37,119.34,0.06288593]
[1744226924362,8.3824,119.36,119.34,0.06288593]
[1744226925165,8.43723394,119.37,119.34,0.06288593]
[1744226925367,0.05573394,119.37,119.34,0.06288593]
[1744226925658,0.05573394,119.37,119.34,8.44598593]
[1744226925864,0.05573394,119.37,119.34,0.06288593]
[1744226926166,8.43713394,119.37,119.34,0.06288593]
[1744226926663,0.05573394,119.37,119.34,0.06288593]
[1744226928665,8.3827,119.35,119.34,0.06288593]
[1744226929264,8.3844,119.33,119.29,3.1033]
[1744226929465,47.86,119.35,119.3,8.3862]
[1744226929668,47.86,119.35,119.27,65.2206]
[1744226930070,47.86,119.35,119.28,8.3874]
[1744226930371,8.3848,119.32,119.27,65.2206]
[1744226930570,0.05837826,119.33,119.3,0.05820372]
[1744226930971,8.44287826,119.33,119.3,0.05820372]
[1744226931162,0.05837826,119.33,119.3,0.05820372]
[1744226931559,8.3848,119.32,119.3,0.05820372]
[1744226931965,0.05837826,119.33,119.3,0.05820372]
[1744226932168,0.05837826,119.33,119.3,8.44430372]
[1744226932669,0.05837826,119.33,119.3,8.44400372]
[1744226932871,0.05837826,119.33,119.3,0.05820372]
[1744226933175,0.05837826,119.33,119.3,8.44400372]
[1744226933675,8.44257826,119.33,119.3,0.05820372]
[1744226934278,0.05837826,119.33,119.3,0.05820372]
[1744226935964,0.05837826,119.33,119.3,8.44410372]
[1744226936476,0.05837826,119.33,119.31,8.3855]
[1744226936870,0.05837826,119.33,119.3,0.05820372]
[1744226937075,0.05837826,119.33,119.3,8.44410372]
[1744226937474,0.05837826,119.33,119.3,0.05820372]
[1744226937775,8.44277826,119.33,119.3,0.05820372]
[1744226937974,0.05837826,119.33,119.3,0.05820372]
[1744226938274,0.05837826,119.33,119.31,8.385]
[1744226938474,0.05837826,119.33,119.3,0.05820372]
[1744226938883,0.05837826,119.33,119.32,8.3848]
[1744226939079,47.88,119.38,119.3,0.05820372]
[1744226939264,47.88,119.38,119.3,3.0863]
[1744226939468,8.3813,119.37,119.33,8.3836]
[1744226940081,56.2609,119.38,119.34,8.3834]
[1744226940373,0.06258956,119.36,119.34,0.06000898]
[1744226940778,0.06258956,119.36,119.35,8.3827]
[1744226943580,47.88,119.42,119.39,8.3796]
[1744226943876,47.88,119.42,119.35,29.5209576]
[1744226944067,50.8162,119.45,119.4,8.3791]
[1744226944273,8.3767,119.44,119.4,8.3791]
[1744226944476,47.86,119.45,119.37,26.3687576]